[Event "SixDays Budapest IM-A January 2024"]
[Site "Budapest"]
[Date "2024.01.27"]
[Round "1.1"]
[White "Urhegyi, Marton"]
[Black "Kuru, Atilla"]
[Result "1-0"]
[ECO "C07"]
[WhiteElo "2255"]
[BlackElo "2220"]
[Annotator "RC"]
[PlyCount "115"]
[EventDate "2024.01.26"]
[EventType "tourn"]
[EventCountry "HUN"]
[SourceTitle "playchess.com"]
[Source "ChessBase"]
[SourceQuality "1"]
[TimeControl "5400+30"]

1. e4 {[%emt 0:00:03]} e6 {[%emt 0:10:51]} 2. d4 {[%emt 0:00:12]} d5 {[%emt 0:00:07]} 3. Nd2 {[%emt 0:00:20]} c5 {[%emt 0:00:05]} 4. Ngf3 {[%emt 0:00:20]} cxd4 {[%emt 0:00:05]} 5. Nxd4 {[%emt 0:00:19]} Nc6 {[%emt 0:00:06]} 6. Bb5 {[%emt 0:00:35]} Bd7 {[%emt 0:00:05]} 7. Nxc6 {[%emt 0:00:22]} bxc6 {[%emt 0:01:01]} 8. Bd3 {[%emt 0:00:29]} Bd6 {[%emt 0:00:09]} 9. Qe2 {[%emt 0:01:12]} Qc7 {[%emt 0:00:46]} 10. Nf3 {[%emt 0:00:56]} e5 {[%emt 0:00:54]} 11. exd5 {[%emt 0:00:37]} Ne7 {[%emt 0:00:08]} 12. dxc6 {[%emt 0:00:33]} Bxc6 {[%emt 0:00:14]} 13. O-O {[%emt 0:00:52]} Bxf3 {[%emt 0:01:23]} 14. Qxf3 {[%emt 0:00:50]} O-O {[%emt 0:00:05]} 15. Qe4 {[%emt 0:07:33]} Ng6 {[%emt 0:05:10]} 16. h4 {[%emt 0:03:46]} f5 {[%emt 0:07:56]} 17. Qc4+ {[%emt 0:05:18]} Kh8 {[%emt 0:02:14]} 18. h5 {[%emt 0:02:07]} e4 {[%emt 0:02:37]} 19. Qxc7 {[%emt 0:06:15]} Bxc7 {[%emt 0:02:58]} 20. Bxe4 {[%emt 0:00:16]} fxe4 {[%emt 0:00:32]} 21. hxg6 {[%emt 0:00:10]} hxg6 {[%emt 0:00:57]} 22. Re1 {[%emt 0:04:08]} Rad8 {[%emt 0:04:05]} 23. Be3 {[%emt 0:01:33]} Be5 {[%emt 0:02:20]} 24. c3 {[%emt 0:01:53]} Rb8 {[%emt 0:04:26]} 25. Re2 {[%emt 0:01:43]} Rf7 {[%emt 0:00:35]} 26. Rd1 {[%emt 0:01:12]} Rfb7 {[%emt 0:00:33]} 27. Bc1 {[%emt 0:00:58]} Re8 {[%emt 0:01:04]} 28. g3 {[%emt 0:01:03]} Bf6 {[%emt 0:00:20]} 29. Rde1 {[%emt 0:07:02]} Rbe7 {[%emt 0:00:59]} 30. f3 {[%emt 0:01:17]} exf3 {[%emt 0:00:54]} 31. Rxe7 {[%emt 0:00:11]} Bxe7 {[%emt 0:00:08]} 32. Kf1 {[%emt 0:01:36]} f2 {[%emt 0:02:46]} 33. Re2 {[%emt 0:02:28]} Rd8 {[%emt 0:06:52]} 34. Rxe7 {[%emt 0:01:56]} Rd1+ {[%emt 0:00:05]} 35. Kxf2 {[%emt 0:00:05]} Rxc1 {[%emt 0:00:03]} 36. Kf3 {[%emt 0:01:23]} Rf1+ {[%emt 0:01:18]} 37. Kg4 {[%emt 0:00:54]} a5 {[%emt 0:01:30]} 38. a4 {[%emt 0:00:42]} Rf2 {[%emt 0:04:22]} 39. b3 {[%emt 0:02:21]} Rc2 {[%emt 0:03:51]} 40. Re8+ {[%emt 0:04:09]} Kh7 {[%emt 0:00:40]} 41. c4 {[%emt 0:00:12]} Rc3 {[%emt 0:00:05]} 42. Rb8 {[%emt 0:00:12]} g5 {[%emt 0:00:18]} 43. Rb5 {[%emt 0:01:37]} Kh6 {[%emt 0:00:05]} 44. c5 {[%emt 0:03:09]} g6 {[%emt 0:00:22]} 45. c6 {[%emt 0:01:37]} Rxc6 {[%emt 0:01:01]} 46. Rxa5 {[%emt 0:00:10]} Rd6 {[%emt 0:00:05]} 47. Rb5 {[%emt 0:01:08]} Rd4+ {[%emt 0:00:06]} 48. Kf3 {[%emt 0:00:21]} Rd3+ {[%emt 0:01:39]} 49. Kf2 {[%emt 0:00:44]} Kh5 {[%emt 0:00:19]} 50. a5 {[%emt 0:01:10]} Kg4 {[%emt 0:00:21]} 51. Rb4+ {[%emt 0:01:31]} Kh3 {[%emt 0:00:11]} 52. a6 {[%emt 0:01:32]} Rd7 {[%emt 0:00:56]} 53. g4 {[%emt 0:00:48]} Kh4 {[%emt 0:00:38]} 54. Ra4 {[%emt 0:00:23]} Rf7+ {[%emt 0:00:17]} 55. Ke3 {[%emt 0:00:22]} Ra7 {[%emt 0:00:07]} 56. Kf3 {[%emt 0:00:49]} Rf7+ {[%emt 0:00:07]} 57. Ke4 {[%emt 0:00:53]} Ra7 {[%emt 0:01:14]} 58. Kd5 {[%emt 0:00:33]} 1-0

[Event "SixDays Budapest IM-A January 2024"]
[Site "Budapest"]
[Date "2024.01.27"]
[Round "1.2"]
[White "Cieslak, Patryk"]
[Black "Hacker, Jonas"]
[Result "1/2-1/2"]
[ECO "B40"]
[WhiteElo "2284"]
[BlackElo "2420"]
[Annotator "RC"]
[PlyCount "55"]
[EventDate "2024.01.26"]
[EventType "tourn"]
[EventCountry "HUN"]
[SourceTitle "playchess.com"]
[Source "ChessBase"]
[SourceQuality "1"]
[TimeControl "5400+30"]

1. e4 {[%emt 0:00:03]} c5 {[%emt 0:00:07]} 2. Nf3 {[%emt 0:00:06]} e6 {[%emt 0:00:04]} 3. d4 {[%emt 0:00:05]} cxd4 {[%emt 0:00:04]} 4. Nxd4 {[%emt 0:00:03]} Nf6 {[%emt 0:00:24]} 5. Nc3 {[%emt 0:00:16]} Nc6 {[%emt 0:00:06]} 6. Nxc6 {[%emt 0:00:15]} bxc6 {[%emt 0:00:08]} 7. e5 {[%emt 0:00:02]} Nd5 {[%emt 0:00:10]} 8. Ne4 {[%emt 0:00:03]} Bb7 {[%emt 0:00:46]} 9. Be2 {[%emt 0:00:50]} c5 {[%emt 0:06:30]} 10. O-O {[%emt 0:00:35]} Qc7 {[%emt 0:02:08]} 11. Nd6+ {[%emt 0:00:11]} Bxd6 {[%emt 0:00:07]} 12. exd6 {[%emt 0:00:03]} Qc6 {[%emt 0:00:38]} 13. f3 {[%emt 0:00:52]} c4 {[%emt 0:01:54]} 14. Qd4 {[%emt 0:00:28]} O-O {[%emt 0:01:20]} 15. Bxc4 {[%emt 0:00:32]} Qxd6 {[%emt 0:01:48]} 16. b3 {[%emt 0:01:15]} Qb6 {[%emt 0:03:51]} 17. Qxb6 {[%emt 0:00:07]} Nxb6 {[%emt 0:01:54]} 18. Bd3 {[%emt 0:00:16]} Rfc8 {[%emt 0:02:25]} 19. Bd2 {[%emt 0:00:53]} a5 {[%emt 0:06:13]} 20. c4 {[%emt 0:16:56]} d5 {[%emt 0:07:10]} 21. cxd5 {[%emt 0:05:17]} Bxd5 {[%emt 0:09:12]} 22. Rac1 {[%emt 0:06:26]} Rcb8 {[%emt 0:09:20]} 23. Bb5 {[%emt 0:11:58]} a4 {[%emt 0:05:12]} 24. Bf4 {[%emt 0:07:31]} Rb7 {[%emt 0:05:16]} 25. bxa4 {[%emt 0:04:11]} h6 {[%emt 0:00:29]} 26. Bd6 {[%emt 0:05:40]} Nxa4 {[%emt 0:02:41]} 27. Bxa4 {[%emt 0:00:35]} Rxa4 {[%emt 0:00:06]} 28. a3 {[%emt 0:00:24]} 1/2-1/2

[Event "SixDays Budapest IM-A January 2024"]
[Site "Budapest"]
[Date "2024.01.27"]
[Round "1.3"]
[White "Orso, Miklos"]
[Black "Szalay-Ocsak, Bank"]
[Result "1/2-1/2"]
[ECO "B23"]
[WhiteElo "2172"]
[BlackElo "2165"]
[Annotator "RC"]
[PlyCount "29"]
[EventDate "2024.01.26"]
[EventType "tourn"]
[EventCountry "HUN"]
[SourceTitle "playchess.com"]
[Source "ChessBase"]
[SourceQuality "1"]
[TimeControl "5400+30"]

1. e4 {[%emt 0:00:04]} c5 {[%emt 0:00:16]} 2. Nc3 {[%emt 0:00:09]} Nc6 {[%emt 0:00:15]} 3. f4 {[%emt 0:00:18]} e6 {[%emt 0:02:45]} 4. Nf3 {[%emt 0:00:17]} d5 {[%emt 0:01:51]} 5. Bb5 {[%emt 0:00:26]} dxe4 {[%emt 0:18:28]} 6. Bxc6+ {[%emt 0:03:39]} bxc6 {[%emt 0:00:01]} 7. Nxe4 {[%emt 0:00:13]} Nf6 {[%emt 0:05:54]} 8. Qe2 {[%emt 0:04:36]} Nxe4 {[%emt 0:02:59]} 9. Qxe4 {[%emt 0:00:11]} Qd5 {[%emt 0:00:05]} 10. d3 {[%emt 0:01:15]} Ba6 {[%emt 0:03:56]} 11. b3 {[%emt 0:30:28]} c4 {[%emt 0:07:49]} 12. Qxd5 {[%emt 0:06:56]} cxd5 {[%emt 0:00:29]} 13. dxc4 {[%emt 0:00:06]} dxc4 {[%emt 0:02:22]} 14. Be3 {[%emt 0:00:09]} Rc8 {[%emt 0:18:12]} 15. Kf2 {[%emt 0:06:34]} 1/2-1/2

[Event "SixDays Budapest IM-A January 2024"]
[Site "Budapest"]
[Date "2024.01.27"]
[Round "1.4"]
[White "Balla, Tamas-Kristof"]
[Black "Lim, Zhuo Ren"]
[Result "1/2-1/2"]
[ECO "A05"]
[WhiteElo "2283"]
[BlackElo "2218"]
[Annotator "RC"]
[PlyCount "105"]
[EventDate "2024.01.26"]
[EventType "tourn"]
[EventCountry "HUN"]
[SourceTitle "playchess.com"]
[Source "ChessBase"]
[SourceQuality "1"]
[TimeControl "5400+30"]

1. Nf3 {[%emt 0:00:03]} Nf6 {[%emt 0:00:15]} 2. b3 {[%emt 0:00:05]} g6 {[%emt 0:00:25]} 3. Bb2 {[%emt 0:00:04]} Bg7 {[%emt 0:00:09]} 4. e3 {[%emt 0:00:13]} O-O {[%emt 0:00:28]} 5. c4 {[%emt 0:00:03]} c5 {[%emt 0:00:25]} 6. Be2 {[%emt 0:00:44]} Nc6 {[%emt 0:00:42]} 7. O-O {[%emt 0:05:07]} d5 {[%emt 0:01:05]} 8. cxd5 {[%emt 0:00:22]} Qxd5 {[%emt 0:00:06]} 9. Nc3 {[%emt 0:02:45]} Qf5 {[%emt 0:00:58]} 10. d3 {[%emt 0:04:52]} Rd8 {[%emt 0:00:32]} 11. a3 {[%emt 0:00:10]} b6 {[%emt 0:01:41]} 12. Qc2 {[%emt 0:02:28]} Ba6 {[%emt 0:00:43]} 13. Ne4 {[%emt 0:02:52]} Rac8 {[%emt 0:02:35]} 14. Rfd1 {[%emt 0:03:02]} Bb7 {[%emt 0:05:17]} 15. Ng3 {[%emt 0:04:13]} Qe6 {[%emt 0:01:55]} 16. Rab1 {[%emt 0:01:09]} Bh6 {[%emt 0:03:46]} 17. Qc3 {[%emt 0:03:32]} a5 {[%emt 0:02:23]} 18. Qc4 {[%emt 0:12:30]} Qd7 {[%emt 0:07:08]} 19. Ne4 {[%emt 0:16:41]} Bg7 {[%emt 0:02:06]} 20. Nxf6+ {[%emt 0:02:15]} Bxf6 {[%emt 0:00:54]} 21. Bxf6 {[%emt 0:00:21]} exf6 {[%emt 0:00:03]} 22. Qh4 {[%emt 0:01:35]} Kg7 {[%emt 0:00:34]} 23. Qg3 {[%emt 0:04:04]} Ne7 {[%emt 0:04:18]} 24. h4 {[%emt 0:01:25]} Qc7 {[%emt 0:03:33]} 25. Qg4 {[%emt 0:02:03]} h5 {[%emt 0:00:32]} 26. Qc4 {[%emt 0:00:41]} Bd5 {[%emt 0:00:35]} 27. Qc3 {[%emt 0:00:31]} b5 {[%emt 0:00:43]} 28. e4 {[%emt 0:12:51]} b4 {[%emt 0:00:44]} 29. axb4 {[%emt 0:02:24]} axb4 {[%emt 0:00:03]} 30. Qb2 {[%emt 0:00:08]} Be6 {[%emt 0:00:15]} 31. d4 {[%emt 0:05:02]} Bg4 {[%emt 0:05:00]} 32. Rbc1 {[%emt 0:04:05]} Qb6 {[%emt 0:01:14]} 33. d5 {[%emt 0:01:45]} Bxf3 {[%emt 0:00:43]} 34. Bxf3 {[%emt 0:00:07]} Qd6 {[%emt 0:00:09]} 35. g3 {[%emt 0:00:43]} Rc7 {[%emt 0:00:23]} 36. Be2 {[%emt 0:00:50]} Nc8 {[%emt 0:01:38]} 37. f4 {[%emt 0:00:13]} Re8 {[%emt 0:01:12]} 38. Bf3 {[%emt 0:01:48]} Nb6 {[%emt 0:01:20]} 39. Kh2 {[%emt 0:00:47]} Kg8 {[%emt 0:02:47]} 40. Re1 {[%emt 0:00:41]} Nd7 {[%emt 0:00:56]} 41. Re2 {[%emt 0:00:19]} Qa6 {[%emt 0:11:11]} 42. e5 {[%emt 0:00:52]} fxe5 {[%emt 0:00:59]} 43. fxe5 {[%emt 0:00:02]} Qa3 {[%emt 0:02:14]} 44. Qxa3 {[%emt 0:01:20]} bxa3 {[%emt 0:00:02]} 45. e6 {[%emt 0:00:01]} fxe6 {[%emt 0:00:22]} 46. dxe6 {[%emt 0:00:02]} Nf8 {[%emt 0:01:39]} 47. Bd5 {[%emt 0:00:18]} Kg7 {[%emt 0:00:17]} 48. b4 {[%emt 0:03:19]} Rce7 {[%emt 0:01:15]} 49. bxc5 {[%emt 0:01:37]} Nxe6 {[%emt 0:00:25]} 50. Rce1 {[%emt 0:01:12]} Kf6 {[%emt 0:00:02]} 51. Rf1+ {[%emt 0:00:44]} Kg7 {[%emt 0:00:01]} 52. Rfe1 {[%emt 0:00:38]} Kf6 {[%emt 0:00:01]} 53. Rf1+ {[%emt 0:00:43]} 1/2-1/2

[Event "SixDays Budapest IM-A January 2024"]
[Site "Budapest"]
[Date "2024.01.27"]
[Round "1.5"]
[White "Vetokhina, Sofia"]
[Black "Polyik, Peter"]
[Result "0-1"]
[ECO "D30"]
[WhiteElo "2020"]
[BlackElo "2289"]
[Annotator "TA"]
[PlyCount "68"]
[EventDate "2024.01.26"]
[EventType "tourn"]
[EventCountry "HUN"]
[SourceTitle "playchess.com"]
[Source "ChessBase"]
[SourceQuality "1"]
[TimeControl "5400+30"]

{[%evp 10,68,-4,-8,0,-23,-26,-38,-47,-79,-96,-85,-97,-902,-901,-897,-888,-887,-846,-791,-753,-773,-754,-725,-715,-923,-910,-820,-123,-899,-904,-874,-915,-920,-920,-911,-909,-869,-854,-866,-835,-855,-784,-787,-778,-842,-780,-986,-966,-1049,-1039,-1199,-1182,-1134,-1093,-1562,-1507,-1327,-1279,-6275,-5423]} 1. d4 {[%emt 0:00:03]} d5 {[%emt 0:00:06]} 2. c4 {[%emt 0:00:05]} e6 {[%emt 0:00:06]} 3. Nf3 {[%emt 0:00:23]} Nf6 {[%emt 0:00:13]} 4. g3 {[%emt 0:00:08]} dxc4 {[%emt 0:00:28]} 5. Qa4+ {[%emt 0:04:53]} Nbd7 {[%emt 0:01:10]} 6. Bg2 {[%emt 0:03:13]} a6 {[%emt 0:01:02]} 7. Ne5 {[%emt 0:16:27][%cal Oe1g1]} c5 {[%emt 0:15:54]} 8. dxc5 {[%emt 0:08:47]} Bxc5 {[%emt 0:01:14] Schwarz steht etwas besser.} 9. Nxd7 {[%emt 0:13:56]} Bxd7 {[%emt 0:01:26]} 10. Qxc4 {[%emt 0:01:59]} Rc8 {[%emt 0:01:28][%cal Oc5f2] Und jetzt ...Bxf2+! wäre schön.} 11. Qb3 $2 {[%emt 0:02:27][%mdl 8192] [#]} (11. Qf4 $17) 11... Bxf2+ $1 $19 {[%emt 0:34:43][%mdl 512]} 12. Kxf2 {[%emt 0:00:17]} Ng4+ {[%emt 0:00:01]} 13. Kf3 {[%emt 0:01:03] [#]} Rxc1 $1 {[%emt 0:00:27][%mdl 512]} 14. Rxc1 {[%emt 0:27:01]} Qf6+ {[%emt 0:00:32]} 15. Ke4 {[%emt 0:00:15]} Qe5+ {[%emt 0:02:40]} (15... Nxh2 $2 16. Qxb7 Qd8 17. Rd1 $18 (17. Qxa6 f5+ 18. Kf4 O-O $17)) 16. Kd3 {[%emt 0:00:49] [#]} Bb5+ $1 {[%emt 0:01:39]} (16... Nxh2 $2 17. Qxb7 Bb5+ 18. Kc2 Qxe2+ 19. Kb3 $18) (16... Qe3+ 17. Kc2 Qxe2+ 18. Nd2 Qxg2 19. Qf3 Qxf3 (19... Qxh2 20. Qxg4 O-O 21. Qd4 $11) 20. Nxf3 $15) 17. Kc2 {[%emt 0:04:34]} Qxe2+ {[%emt 0:01:27]} (17... Bxe2 $2 18. Qa4+ (18. Bxb7 Qf5+ 19. Kc3 Qf6+ 20. Kc2 Qf5+ 21. Kc3 Qf6+ 22. Kc2 Qf5+ $11) (18. Qxb7 O-O $16) 18... Ke7 19. Qb4+ (19. Bxb7 Ne3+ 20. Kb3 Rb8 $16) 19... Kf6 20. Qc3 $18 (20. Bxb7 Ne3+ 21. Kb3 Rb8 $16)) 18. Nd2 {[%emt 0:02:10]} O-O $2 {[%emt 0:14:17]} (18... Qxg2 19. Qf3 Qxf3 (19... Qxh2 $2 20. Qxg4 O-O 21. a4 $18) 20. Nxf3 $17) (18... Ne3+ $19 {und Schwarz behält klar die Oberhand.} 19. Qxe3 Qxe3) 19. Bf1 $2 {[%emt 0:06:07][%mdl 8192]} (19. a4 $17 Rc8+ (19... Qxg2 $2 {geht unter.} 20. axb5 Rd8 21. Qc3 $18) (19... Bd3+ 20. Kc3 $17) 20. Kb1 Rxc1+ (20... Bd3+ $2 21. Ka2 $18) 21. Kxc1) 19... Ne3+ {[%emt 0:02:45] Schwarz steht klar auf Gewinn.} (19... Qxh2 20. Bxb5 axb5 21. a4 $16 (21. Qxb5 Ne3+ 22. Kb3 Qxd2 $11)) 20. Kb1 {[%emt 0:00:43]} Nxf1 {[%emt 0:00:18] Weiss ist schwach auf den weissen Feldern} ({Nicht} 20... Qxd2 21. Bxb5 axb5 22. a3 $11) 21. Rxf1 {[%emt 0:01:31]} Bd3+ {[%emt 0:00:43]} 22. Kc1 {[%emt 0:00:22]} Rc8+ {[%emt 0:00:06]} 23. Qc3 {[%emt 0:00:06]} Rxc3+ {[%emt 0:00:22]} 24. bxc3 {[%emt 0:00:08]} Qe5 {[%emt 0:00:20]} 25. Kb2 {[%emt 0:01:00]} Bxf1 {[%emt 0:03:36]} 26. Rxf1 {[%emt 0:00:24][%mdl 4096] Endspiel. KQ-KRN} Qe2 {[%emt 0:01:26][%csl LRd2,LRh2]} 27. Kc2 {[%emt 0:00:21]} f5 {[%emt 0:01:13]} 28. h4 {[%emt 0:01:34]} g6 {[%emt 0:00:44]} 29. Rb1 {[%emt 0:02:00]} b5 {[%emt 0:00:13]} 30. c4 {[%emt 0:00:30]} bxc4 {[%emt 0:00:27] Weiss muss nun ...Qd3+ beachten.} 31. Rb8+ {[%emt 0:00:18]} Kg7 {[%emt 0:00:03]} 32. Rc8 {[%emt 0:00:14]} Qd3+ {[%emt 0:00:06]} 33. Kc1 {[%emt 0:00:10]} c3 {[%emt 0:00:11]} 34. Nb3 {[%emt 0:00:15]} e5 {[%emt 0:03:43] Weiß schien mit der Eröffnung nicht zurechtzukommen.   Gewichteter Fehlerwert: Weiß=1.24/Schwarz=0.36.  Verlustzug:     	Weiß=1     	---        Ungenau:       	Weiß=1     	---        OK:         	Weiß=2     	Schwarz=2     Bester:       	Weiß=1     	---        Brilliant:      	---       	Schwarz=1} 0-1

[Event "SixDays Budapest IM-A January 2024"]
[Site "Budapest"]
[Date "2024.01.28"]
[Round "2.1"]
[White "Kuru, Atilla"]
[Black "Polyik, Peter"]
[Result "1/2-1/2"]
[ECO "C34"]
[WhiteElo "2220"]
[BlackElo "2289"]
[Annotator "NA RC"]
[PlyCount "189"]
[EventDate "2024.01.26"]
[EventType "tourn"]
[EventCountry "HUN"]
[SourceTitle "playchess.com"]
[Source "ChessBase"]
[SourceQuality "1"]
[TimeControl "5400+30"]

1. e4 {[%emt 0:10:22]} e5 {[%emt 0:00:08]} 2. f4 {[%emt 0:02:04]} exf4 {[%emt 0:00:19]} 3. Nf3 {[%emt 0:00:05]} Nf6 {[%emt 0:01:18]} 4. e5 {[%emt 0:00:37]} Nh5 {[%emt 0:00:13]} 5. d4 {[%emt 0:00:06]} d6 {[%emt 0:00:43]} 6. Qe2 {[%emt 0:00:24]} dxe5 {[%emt 0:02:53]} 7. Nxe5 {[%emt 0:07:41]} Qh4+ {[%emt 0:00:21]} 8. g3 {[%emt 0:01:24]} Nxg3 {[%emt 0:00:16]} 9. hxg3 {[%emt 0:00:05]} Qxh1 {[%emt 0:00:12]} 10. Bxf4 {[%emt 0:00:30]} Bd6 {[%emt 0:10:16]} 11. Nc3 {[%emt 0:20:20]} O-O {[%emt 0:02:47]} 12. O-O-O {[%emt 0:00:30]} Bh3 {[%emt 0:03:56]} 13. Bxh3 {[%emt 0:16:16]} Qxh3 {[%emt 0:00:39]} 14. Qe4 {[%emt 0:00:40]} Qe6 {[%emt 0:24:50]} 15. Rh1 {[%emt 0:00:17]} h6 {[%emt 0:20:21]} 16. g4 {[%emt 0:07:11]} Nd7 {[%emt 0:00:30]} 17. g5 {[%emt 0:00:30]} f5 {[%emt 0:00:30]} 18. gxf6 {[%emt 0:00:30]} Nxf6 {[%emt 0:00:30]} 19. Qg6 {[%emt 0:00:30]} Bxe5 {[%emt 0:00:30]} 20. Bxe5 {[%emt 0:00:30]} Qg4 {[%emt 0:00:30]} 21. Rxh6 {[%emt 0:00:30]} Qxg6 {[%emt 0:00:30]} 22. Rxg6 {[%emt 0:00:30]} c6 {[%emt 0:00:30]} 23. a4 {[%emt 0:00:30]} Rf7 {[%emt 0:00:30]} 24. Rg1 {[%emt 0:00:30]} Re8 {[%emt 0:00:30]} 25. a5 {[%emt 0:00:30]} Nd7 {[%emt 0:00:30]} 26. Bd6 {[%emt 0:00:30]} Re6 {[%emt 0:00:30]} 27. Bc7 {[%emt 0:00:30]} Ref6 {[%emt 0:00:30]} 28. Rg2 {[%emt 0:00:30]} Rf2 {[%emt 0:00:30]} 29. Rg3 {[%emt 0:00:30]} Re7 {[%emt 0:00:30]} 30. Rg1 {[%emt 0:00:30]} Kf7 {[%emt 0:00:30]} 31. b4 {[%emt 0:00:30]} a6 {[%emt 0:00:30]} 32. Kb2 {[%emt 0:00:30]} Rf5 {[%emt 0:00:30]} 33. Bd8 {[%emt 0:00:30]} Re8 {[%emt 0:00:30]} 34. Bg5 {[%emt 0:00:30]} Nf6 {[%emt 0:00:30]} 35. Kb3 {[%emt 0:00:30]} Ne4 {[%emt 0:00:30]} 36. Nxe4 {[%emt 0:00:30]} Rxe4 {[%emt 0:00:30]} 37. Kc4 {[%emt 0:00:30]} Re6 {[%emt 0:00:30]} 38. Bd8 {[%emt 0:00:30]} g6 {[%emt 0:00:30]} 39. Rg3 {[%emt 0:00:30]} Kg7 {[%emt 0:00:30]} 40. Bg5 {[%emt 0:00:30]} Rd6 {[%emt 0:00:30]} 41. Kd3 {[%emt 0:00:30]} Kf7 {[%emt 0:00:30]} 42. Ke4 {[%emt 0:00:30]} Re6+ {[%emt 0:00:30]} 43. Kd3 {[%emt 0:00:30]} Re1 {[%emt 0:00:30]} 44. c3 {[%emt 0:00:30]} Ref1 {[%emt 0:00:30]} 45. Ke4 {[%emt 0:00:30]} Ke6 {[%emt 0:00:30]} 46. c4 {[%emt 0:00:30]} Kf7 {[%emt 0:00:30]} 47. Bd2 {[%emt 0:00:30]} R1f2 {[%emt 0:00:30]} 48. Ke3 {[%emt 0:00:30]} g5 {[%emt 0:00:30]} 49. Rxg5 {[%emt 0:00:30]} Rxg5 {[%emt 0:00:30]} 50. Kxf2 {[%emt 0:00:30]} Rh5 {[%emt 0:00:30]} 51. Kf3 {[%emt 0:00:30]} Ke6 {[%emt 0:00:30]} 52. Ke4 {[%emt 0:00:30]} Rh3 {[%emt 0:00:30]} 53. d5+ {[%emt 0:08:40]} Kd7 {[%emt 0:28:44]} 54. Kd4 {[%emt 0:00:24]} cxd5 {[%emt 0:00:26]} 55. cxd5 {[%emt 0:00:05]} Rh2 {[%emt 0:00:13]} 56. Bf4 {[%emt 0:01:34]} Rc2 {[%emt 0:00:02]} 57. Bh6 {[%emt 0:00:52]} Rh2 {[%emt 0:01:01]} 58. Bf8 {[%emt 0:00:22]} Rc2 {[%emt 0:00:45]} 59. Kd3 {[%emt 0:00:13]} Rc1 {[%emt 0:00:06]} 60. Kd4 {[%emt 0:00:05]} Ke8 {[%emt 0:00:38]} 61. Bc5 {[%emt 0:00:10]} Re1 {[%emt 0:00:15]} 62. Bd6 {[%emt 0:00:13]} Kd7 {[%emt 0:00:29]} 63. Bf8 {[%emt 0:00:08]} Re8 {[%emt 0:00:15]} 64. Bc5 {[%emt 0:00:28]} Rh8 {[%emt 0:00:03]} 65. Ke5 {[%emt 0:00:39]} Rh4 {[%emt 0:00:21]} 66. Bd4 {[%emt 0:00:34]} Rg4 {[%emt 0:00:36]} 67. Bc5 {[%emt 0:00:04]} Rc4 {[%emt 0:00:07]} 68. Kf5 {[%emt 0:00:04]} b6 {[%emt 0:01:33]} 69. axb6 {[%emt 0:01:31]} a5 {[%emt 0:00:05]} 70. b7 {[%emt 0:00:12]} Kc7 {[%emt 0:00:01]} 71. Bb6+ {[%emt 0:00:11]} Kxb7 {[%emt 0:00:07]} 72. Bxa5 {[%emt 0:00:26]} Kc8 {[%emt 0:00:23]} 73. Ke6 {[%emt 0:00:04]} Rh4 {[%emt 0:00:07]} 74. Kd6 {[%emt 0:00:17]} Rh6+ {[%emt 0:00:16]} 75. Kc5 {[%emt 0:00:05]} Kb7 {[%emt 0:00:11]} 76. b5 {[%emt 0:00:05]} Rh5 {[%emt 0:00:37]} 77. Bc3 {[%emt 0:00:12]} Rh6 {[%emt 0:00:20]} 78. Be5 {[%emt 0:00:08]} Rh5 {[%emt 0:00:23]} 79. Kd4 {[%emt 0:00:46]} Rh4+ {[%emt 0:00:51]} 80. Kc5 {[%emt 0:00:05]} Rh5 {[%emt 0:00:04]} 81. Bf6 {[%emt 0:00:04]} Rh6 {[%emt 0:00:08]} 82. Be7 {[%emt 0:00:11]} Rh5 {[%emt 0:00:36]} 83. Bf8 {[%emt 0:00:17]} Rf5 {[%emt 0:00:16]} 84. Bg7 {[%emt 0:00:07]} Rg5 {[%emt 0:00:27]} 85. Bd4 {[%emt 0:00:05]} Rh5 {[%emt 0:02:29]} 86. Kd6 {[%emt 0:00:08]} Rh6+ {[%emt 0:00:05]} 87. Ke7 {[%emt 0:00:11]} Rh7+ {[%emt 0:00:07]} 88. Ke6 {[%emt 0:00:07]} Rh6+ {[%emt 0:00:04]} 89. Bf6 {[%emt 0:00:10]} Kb6 {[%emt 0:00:32]} 90. d6 {[%emt 0:00:07]} Rh7 {[%emt 0:00:10]} 91. Be7 {[%emt 0:00:16]} Rh6+ {[%emt 0:00:02]} 92. Bf6 {[%emt 0:00:18]} Rh7 {[%emt 0:00:04]} 93. Be7 {[%emt 0:00:41]} Rh6+ {[%emt 0:00:01]} 94. Bf6 {[%emt 0:00:05]} Rh7 {[%emt 0:00:04]} 95. Be7 {[%emt 0:00:05]} 1/2-1/2